Cogmind - Beta 15 @@@ ROGUE MODE // 2025.09.03 @ 19:59:51 Player: Silfurdreki Result: Destroyed by NB-XAT(R) with Subdweller Machine Gun Performance ------------- Evolutions (0) 0 Regions Visited (2) 400 Robots Destroyed (19) 95 Value Destroyed (480) 480 Prototype IDs (2) 40 Alien Tech Used (0) 0 Bonus (0) 0 TOTAL SCORE: 1015 Bonus ------- None Cogmind --------- Core Integrity 0/250 Matter 282/300 Energy 264/265 System Corruption 0% Temperature Cool (0) Movement Walking (210) Ox1 Location -10/Subcaves Parts ------- > --- POWER (1) -------- Improved Ion Engine > --- PROPULSION (2) --- Makeshift Leg > --- UTILITY (2) ------ Medium Storage Unit Makeshift Hacking Suite > --- WEAPON (2) ------- Subdweller Machine Gun > --- INVENTORY (10) --- Improved Ion Engine Subdweller Power Source Subdweller Power Source Scrap Shield Improved Assault Rifle Slug Cannon Mini Grenade Launcher Shrapnel Trap Scrap Shield Fragment (49) Peak State ------------ > --- POWER ------------ Makeshift Power Source > --- PROPULSION ------- Aluminum Leg Makeshift Leg > --- UTILITY ---------- Medium Storage Unit Makeshift Hacking Suite > --- WEAPON ----------- Subdweller Machine Gun Improved Assault Rifle > --- INVENTORY -------- Improved Ion Engine Improved Ion Engine Aluminum Leg Medium Armor Plating Scrap Shield Subdweller Machine Gun Improved Assault Rifle Mini Grenade Launcher Piercing Trap [Rating: 20] Favorites ----------- Power Makeshift Power Source Engine Makeshift Power Source Propulsion Aluminum Leg Leg Aluminum Leg Utility Medium Storage Unit Device Seismic Detector Storage Medium Storage Unit Hackware Makeshift Hacking Suite Weapon Improved Assault Rifle Ballistic Gun Improved Assault Rifle Build | -11 -10 -10 ------- Run | Yrd Mat Sub Slots Evolved . | . . . Power . | . . . Propulsion . | . . . Utility . | . . . Weapon . | . . . Parts Attached 20 | 7 4 9 Power 4 | 1 1 2 Engine 4 | 1 1 2 Core . | . . . Reactor . | . . . Propulsion 4 | 2 . 2 Treads . | . . . Leg 4 | 2 . 2 Wheel . | . . . Hover . | . . . Flight . | . . . Utility 4 | 2 1 1 Device 1 | 1 . . Storage 2 | 1 1 . Processor . | . . . Hackware 1 | . . 1 Protection . | . . . Artifact . | . . . Weapon 8 | 2 2 4 Energy Gun . | . . . Energy Cannon . | . . . Ballistic Gun 8 | 2 2 4 Ballistic Cannon . | . . . Launcher . | . . . Special Weapon . | . . . Impact Weapon . | . . . Slashing Weapon . | . . . Piercing Weapon . | . . . Special Melee Weapon . | . . . Unidentified Prototypes 1 | . 1 . Parts Lost 5 | . . 5 Power 1 | . . 1 Propulsion 2 | . . 2 Utility . | . . . Weapon 2 | . . 2 Highest Loss Streak 3 | . . 3 To Critical Strikes . | . . . Average Backups 7 | 2 7 7 Power 1 | . 1 2 Propulsion 1 | 1 1 . Utility 1 | . . 1 Weapon 3 | . 4 3 Tool/Special . | . . . Unused Backups 16 | . 6 10 Power 4 | . 1 3 Propulsion 2 | . 2 . Utility 4 | . 1 3 Weapon 6 | . 2 4 Tool/Special . | . . . Average Slot Usage (%) 99 | . 100 99 Engine 13 | . 14 13 Leg 27 | . 28 27 Device 8 | . 14 6 Storage 14 | . 14 14 Hackware 5 | . . 7 Ballistic Gun 27 | . 28 27 Peak Build Rating 20 | 7 13 20 Average Rating 14 | 5 11 16 On Entrance 6 | . 7 13 Naked Turns . | . . . Heaviest Build 25 | 14 24 25 Greatest Support 30 | 20 20 30 Greatest Overweight (x) 3 | 3 1 1 Average Overweight (x) . | . . . Largest Inventory Capacity 10 | 8 10 10 Average Capacity 9 | 7 9 10 Most Carried 10 | 4 10 10 Average Carried 8 | 2 7 9 Final Capacity 10 | 8 10 10 Final Carried 10 | 4 9 10 Class Distribution -------------------- 67% | Mutant 32% | Derelict-Mutant Dominant Class ---------------- Mutant | -10/Materials Mutant | -10/Subcaves Resources | -11 -10 -10 ----------- Run | Yrd Mat Sub Matter Collected 695 | 293 138 264 Remotely . | . . . Salvage Created 681 | 83 170 428 Parts 44 | 4 14 26 Haulers Intercepted 1 | . 1 . Recyclers Shooed 1 | 1 . . Parts Field Recycled . | . . . Retrieved Matter . | . . . Parts Self-Destructed 4 | . . 4 Prevented . | . . . Kills | -11 -10 -10 ------- Run | Yrd Mat Sub Combat Hostiles Destroyed 15 | . 5 10 Guns 15 | . 5 10 Classes Destroyed 8 | 2 4 2 Tunneler 1 | 1 . . Hauler 1 | . 1 . Recycler 1 | 1 . . Watcher 1 | . 1 . Swarmer 5 | . 4 1 Grunt 1 | . 1 . Sentry 1 | . . 1 Subdweller 8 | . . 8 Best Kill Streak 4 | 2 4 2 Combat Bots Only 3 | . 3 2 Max Kills in Single Turn 2 | 1 2 1 Gunslinging 1 | . 1 . Exploded . | . . . Melee . | . . . Uniques/NPCs Destroyed . | . . . Combat | -11 -10 -10 -------- Run | Yrd Mat Sub Hostile Shots Fired 96 | . 25 71 Missed 23 | . 5 18 Hits 73 | . 20 53 Projectile 73 | . 20 53 Critical Strikes 2 | . . 2 Damage Taken 1284 | . 179 1105 Core 259 | . 23 236 Absorbed by Shields . | . . . Core Remaining (%) 100 | 100 . . Volleys Fired 66 | 9 15 42 Largest 2 | 2 2 2 Hottest 55 | 40 46 55 Shots Fired 123 | 18 30 75 Gun 123 | 18 30 75 Cannon . | . . . Launcher . | . . . Special . | . . . Kinetic 123 | 18 30 75 Thermal . | . . . Explosive . | . . . Electromagnetic . | . . . Robot Hit Streak 23 | 4 8 23 Robot Miss Streak 4 | 4 2 3 Penetration Max . | . . . Secondary Targets 2 | . 1 1 Max Gunslinging Chain 1 | . 1 1 Shots Hit Robots 95 | 10 22 63 Core Hits 31 | 4 8 19 Critical Kills . | . . . Critical Parts Destroyed 2 | . 1 1 Critical Strikes 2 | . 1 1 Destroy 2 | . 1 1 Melee Attacks . | . . . Impact . | . . . Slashing . | . . . Piercing . | . . . Sneak Attacks . | . . . Combat Hostiles . | . . . Follow-up Attacks . | . . . Damage Inflicted 1473 | 113 340 1020 Guns 1473 | 113 340 1020 Cannons . | . . . Explosions . | . . . Melee . | . . . Ramming . | . . . Kinetic 1473 | 113 340 1020 Thermal . | . . . Explosive . | . . . Electromagnetic . | . . . Impact . | . . . Slashing . | . . . Piercing . | . . . Highest Corruption . | . . . Average Corruption . | . . . Corruption Purged . | . . . Corruption Blocked . | . . . Overload Shots . | . . . Overflow Damage . | . . . Projectiles . | . . . Explosions . | . . . Melee . | . . . Knockbacks . | . . . Impact . | . . . Kinetic . | . . . Secondary . | . . . Self-Inflicted Damage . | . . . Shots . | . . . Rammed . | . . . Targets Rammed 1 | . 1 . Kicked 1 | . 1 . Crushed . | . . . Highest Temperature 1 | . 1 . Average Temperature 1 | . 1 . Received Heat Transfer 153 | . 24 129 Siege Activations . | . . . Martial Activations . | . . . Shielding Activations . | . . . Robots Disrupted . | . . . Combat Hostiles . | . . . Robots Corrupted . | . . . Combat Hostiles . | . . . Parts Fried . | . . . Impact Corruptions . | . . . Robots Melted . | . . . Combat Hostiles . | . . . Parts Melted . | . . . Heat Transferred . | . . . Parts Sabotaged . | . . . Parts Stolen . | . . . Parts Stripped . | . . . Power Chain Reactions . | . . . Alert | -11 -10 -10 ------- Run | Yrd Mat Sub Maximum Alert Level . | . . . Low Security (%) 100 | 100 100 . Level 1 . | . . . Level 2 . | . . . Level 3 . | . . . Level 4 . | . . . Level 5 . | . . . High Security . | . . . Max Security . | . . . Peak Influence 92 | 5 92 . Initial . | . . . Average 26 | . 31 . Influence Increases 262 | 10 212 40 Destroy 0b10 Robot/C 140 | . 100 40 Destroy 0b10 Robot/NC 20 | 10 10 . Destroy Leader 24 | . 24 . Successful Hack 33 | . 33 . Lose Combat Pursuer 45 | . 45 . Influence Decreases 262 | 10 212 40 Time Decay 249 | 10 212 27 Lost Part 13 | . . 13 Squads Dispatched . | . . . Investigation . | . . . Extermination . | . . . Reinforcement . | . . . Assault . | . . . Garrison . | . . . Intercept . | . . . Searches Triggered . | . . . Construction Impeded . | . . . Haulers Reinforced . | . . . Active Scanning Responses . | . . . Cargo Convoy Interrupts . | . . . Stealth | -11 -10 -10 --------- Run | Yrd Mat Sub Distress Signals 1 | . 1 . Communications Jammed . | . . . Distress Signals . | . . . Times Spotted 25 | . 14 11 Peak Tracking Total 5 | . 5 2 Tactical Retreats 2 | . 2 . Traps | -11 -10 -10 ------- Run | Yrd Mat Sub Traps Triggered 2 | . . 2 Indirectly . | . . . Trap Hack Attempts . | . . . Triggered . | . . . Disarmed . | . . . Reprogrammed . | . . . Reused . | . . . Traps Extracted . | . . . Installed . | . . . Triggered . | . . . Most Traps Carried 1 | . . 1 Machines | -11 -10 -10 ---------- Run | Yrd Mat Sub Machines Disabled . | . . . Max in Single Turn . | . . . Machines Repaired . | . . . Machines Dismantled . | . . . Machines Sabotaged . | . . . Overloaded Fab Kills . | . . . Hacking | -11 -10 -10 --------- Run | Yrd Mat Sub Machines Accessed 8 | . 6 2 Terminals 6 | . 6 . Fabricators . | . . . Repair Stations . | . . . Recycling Units . | . . . Scanalyzers . | . . . Garrison Access . | . . . Total Hacks 24 | . 21 3 Successful 14 | . 11 3 Failed 10 | . 10 . Catastrophic 1 | . 1 . Database Lockouts . | . . . Manual 17 | . 17 . Terminals 21 | . 21 . Fabricators . | . . . Repair Stations . | . . . Recycling Units . | . . . Scanalyzers . | . . . Garrison Access . | . . . Terminal Hacks 10 | . 7 3 Record 1 | . . 1 Robot Analysis 2 | . 2 . Prototype ID Bank 1 | . 1 . Open Door 1 | . . 1 Locate Traps 1 | . 1 . Transport Status 1 | . 1 . Registered Components 1 | . 1 . Zone Layout 1 | . 1 . Release Object 1 | . . 1 Fabricator Hacks . | . . . Repair Station Hacks . | . . . Recycling Unit Hacks . | . . . Scanalyzer . | . . . Garrison Access Hacks . | . . . Unauthorized Hacks 4 | . 4 . Terminals 4 | . 4 . Botnet 4 | . 4 . Fabricators . | . . . Repair Stations . | . . . Recycling Units . | . . . Scanalyzers . | . . . Garrison Access . | . . . Data Cores Recovered . | . . . Used . | . . . Hacking Detections 6 | . 6 . Full Trace Events 1 | . 1 . Feedback Events . | . . . Feedback Blocked . | . . . Robot Schematics Acquired . | . . . Robots Built . | . . . Authchips . | . . . Time . | . . . Total Robot Build Rating . | . . . Part Schematics Acquired . | . . . Parts Built . | . . . Authchips . | . . . Time . | . . . Total Part Build Rating . | . . . Parts Repaired . | . . . Time . | . . . Parts Recycled . | . . . Recycled Matter . | . . . Retrieved Matter . | . . . Retrieved Components . | . . . Parts Scanalyzed . | . . . Part Schematics Acquired . | . . . Parts Damaged . | . . . Bothacking | -11 -10 -10 ------------ Run | Yrd Mat Sub Used RIF Installer . | . . . Robots Hacked . | . . . Non-combat . | . . . Combat . | . . . Robot Hacks Applied . | . . . Relay Couplers Released . | . . . Fabnet Peak Effective % . | . . . Robots Rewired . | . . . Allies Hacked . | . . . Hacks Repelled . | . . . Allies | -11 -10 -10 -------- Run | Yrd Mat Sub Total Allies . | . . . Largest Group . | . . . Highest-Rated Group . | . . . Highest-Rated Ally . | . . . Total Orders . | . . . Ally Attacks . | . . . Total Damage . | . . . Kills . | . . . Allies Corrupted . | . . . Allies Melted . | . . . Intel | -11 -10 -10 ------- Run | Yrd Mat Sub Active Infowar (turns) 1624 | 24 605 995 Seismic 1624 | 24 605 995 Robot Analysis Total 1 | . 1 . Derelict Logs Recovered 2 | . . 2 Drone Launches . | . . . Drone Recoveries . | . . . Exploration | -11 -10 -10 ------------- Run | Yrd Mat Sub Turns Passed 2775 | 121 605 2049 Spaces Moved 1583 | 63 317 1203 Core 3 | 3 . . Treads . | . . . Legs 1580 | 60 317 1203 Wheels . | . . . Hover . | . . . Flight . | . . . Fastest Speed 50 | 50 120 130 Average Speed 157 | 123 169 156 Slowest Speed 200 | 200 190 190 Overloaded Moves . | . . . Propulsion Burnouts . | . . . Robots Hopped . | . . . Potential Cave-ins . | . . . Cave-ins Triggered . | . . . Exploration Rate (%) 38 | 4 43 67 Regions Visited 2 Branch Regions 1 Pre-discovered Areas . | . . . Known Exits Taken . | . . . Unknown Exits Taken 2 | 1 1 . Scrap Searched 12 | . . 12 Spaces Dug . | . . . Terrain Destroyed . | . . . Melee . | . . . Projectile . | . . . AOE . | . . . Terrain Rammed . | . . . Walls Destroyed . | . . . Machines Disabled . | . . . Actions | -11 -10 -10 --------- Run | Yrd Mat Sub Total 1748 | 86 358 1304 Wait 33 | 4 3 26 Move 1581 | 62 316 1203 Hop . | . . . Pick Up 24 | 4 10 10 Fast Attach 9 | 7 1 1 Attach 3 | . . 3 Detach 1 | . 1 . Swap 9 | . 3 6 Drop 21 | . 8 13 Fire 66 | 9 15 42 Melee . | . . . Ram . | . . . Kick 1 | . 1 . Crush . | . . . Escape Stasis . | . . . Rewire . | . . . Trap . | . . . Miscellaneous . | . . . Route ------- -11/Scrapyard -10/Materials (discovered 2 exits: [*Mat] / *Sub) -10/Subcaves (discovered 3 exits: [*Mat x2] / Rec) History --------- Turn | Location | Event 35 | -11/Scrapyard | Discovered new exit (range 16) 122 | -11/Scrapyard | Entered Materials 302 | -10/Materials | Build established: Mutant 558 | -10/Materials | Discovered new exit (range 6) 602 | -10/Materials | Discovered new exit (range 16) 727 | -10/Materials | Entered Subcaves 729 | -10/Subcaves | Identified exit to Recycling 1677 | -10/Subcaves | Shifting Twisted Machinery released Scrap Shield 1708 | -10/Subcaves | Shifting Twisted Machinery released Mak. Hacking Suite 1772 | -10/Subcaves | Discovered new exit (range 7) 1812 | -10/Subcaves | Disturbed a concealed Subdweller 1813 | -10/Subcaves | Core integrity fell below 50% 2122 | -10/Subcaves | Build established: Derelict-Mutant 2454 | -10/Subcaves | Lost 3 parts (1p1n1w) 2461 | -10/Subcaves | Learned Materials garrison access intel 2555 | -10/Subcaves | Discovered new exit (range 11) 2737 | -10/Subcaves | Disturbed a concealed Subdweller 2761 | -10/Subcaves | Core integrity fell below 20% 2776 | -10/Subcaves | Destroyed by NB-XAT(R) with Subdweller Machine Gun Last Messages --------------- 02617_ Searching scrap... 02617_ Found Sub. Power Source. 02617_ Found Flamer. 02617_ Found 58 Matter. 02618_ Searching scrap... 02618_ Found Flamer. 02618_ Found 70 Matter. 02621_ Searching scrap... 02621_ Found Slug Cannon. 02621_ Found 62 Matter. 02626_ Acquired Slug Cannon. 02634_ Acquired Sub. Power Source. 02671_ Y4-F86(u) deconstructs Twisted Machinery. 02757_ NE-AZE(R) destroyed. 02758_ Battle Rifle destroyed. 02764_ NB-XAT(R) affixes Scrap Shield Fragment to Scrap Shield. 02769_ Aluminum Leg destroyed. 02773_ NB-XAT(R) affixes Scrap Shield Fragment to Scrap Shield. 02776_ NB-XAT(R) suffers critical hit (Destroy). 02776_ Destroyed Sub. Optics. Map ----- +----------------------------------------------------+ | ### #???????????????????????????????????????# | | ##### #???????????????????????????????????????# | | #?## ##??????????????????????????????????????? | | ?## ## #??????????????????????????????????????? | | ## ## ##????????????????????????????########?? | | #![ ### #???????????????????????????## ##? | | " "## ##??????????????????????????## ## | | "" "## ##??????????????????????????# # | | """" ##" #?????????????????????????## # | | """ " """!##????????????????####????## # | | """ ## ###???????????????## ##???# | | ""#### "##??????????????# ##??# | | ""???# #??????????????# #### | | ????### ##??????????????# ## ### | | ??????## ##???????????????# #?# | | ???#### # #????????????????# ##?#### | | ?### ##????????????????## #?????## | | ?#" # ## #????????????????## #####??????##### | | ?# ### ##???????????????# ##?????????????## | | ## #?# #??????######??## ###????????????? | | " #?## #????###< <<#### #????????????? | | #??## #???##<< <<### #????????????? | | "#??## #???#" &! <## #????????????? | | "#### #??##" "< %R ## ##????????????? | | "# ##??#" ^ <# #?????????????? | | ##???#" ##@## #?????????????? | | ##????# $$$ # #" #?????????????? | | ## ## ##????#" $#$ # # #????????????? | | # # #????# $$$ # ### #????????????? | | ## # #????#" ?# #< #?? #????????????? | | ### ##????## "" ###" #?? #????????????? | | #####??????#" ??# #?? #???????????? | | ##??????????##"&& ??## #??? #???????????? | | # # #???????????##"""< ???# ???? ##???????????? | | ######?????????????######???## ????#????????????? | | ??????????????????????????????# ????????????????? | | ???????????????????????????????# ???????????????? | | ???????????????????????????????? ??????????????? | | ????????????????????????????????? #??????????????? | | ?????????????????????????????????????????????????? | | ?????????????????????????????????????????????????? | | ?????????????????????????????????????????????????? | | ?????????????????????????????????????????????????? | | ?????????????????????????????????????????????????? | | ?????????????????????????????????????????????????? | | ??????????????????????#??????????????????????????? | | ????????????????????## ??????????????????????????? | | ???????????????????? ???????????????????????????? | | ???????????????????? #???????????????????????????? | | #####?????????????? ????????????????????????????? | +----------------------------------------------------+ Best States ------------- Heat Dissipation 25 Energy Generation 15 Energy Capacity 265 Matter Stores 300 Matter Capacity 300 Sight Range 16 Terrain Scan Density 10 Evasion (%) 55 Offensive Hacking 11 Item Schematics ----------------- None Robot Schematics ------------------ None Fabricated ------------ Nothing Repaired ---------- Nothing Alien Tech Used ----------------- None Achievements -------------- None Challenges ------------ None Game ------ Seed SubatomicDirectedTearclaws Manual? 0 Play Time 00:19:53 Cumulative 47.7 hours Start 2025.09.03 @ 19:43:08 End 2025.09.03 @ 19:59:51 Sessions 1 Manual Loads 0 Difficulty Rogue Special Mode None Game No. 73 Rogue 73 Adventurer 0 Explorer 0 Win Type - Total 1 Types 1/0/0/0/0/0/0/0/0/0 Lore% 41 Gallery% 36 Achievement% 36 Wizard Run 0 Options --------- Layout 0 ASCII 0 Keyboard 1 Movement Numpad Keybinds 0 Fullscreen 1 Font 24/Smallcaps Map View 76x50 Zoom Use 0% Tactical HUD 1 Map Filters NONE Filters NONE Steam 1 RUN: 03468f2f-a4de-4e6e-b62b-ce508ecdd8f7